bitfinex/quotes_ETHUSD_20260207
["timestamp","ask_amount","ask_price","bid_price","bid_amount"]
[1770466750016,0.33210249,2067.4,2065.8,11.54524145]
[1770466750191,0.05438813,2066.8,2065.6,1.42130654]
[1770466750511,1.59577475,2067.4,2065.5,1.21036068]
[1770466750715,0.33210249,2067.4,2065.7,1.42130654]
[1770466751025,0.05438813,2068.5,2065.7,1.42130654]
[1770466751026,0.33242517,2069.1,2067.0,1.42130654]
[1770466751209,0.05438813,2067.9,2066.3,1.42130654]
[1770466751389,3.387,2068.2,2066.3,1.42130654]
[1770466751585,0.05438813,2067.8,2066.4,1.20983352]
[1770466751892,0.3387,2068.1,2066.5,1.42130654]
[1770466752084,4.83419159,2068.6,2066.5,1.42130654]
[1770466752286,1.20837159,2068.9,2066.8,11.59962958]
[1770466752515,1.20837159,2068.9,2066.5,1.42130654]
[1770466752516,0.05438813,2068.4,2066.5,1.42130654]
[1770466752718,0.05438813,2068.4,2066.3,1.20985627]
[1770466752719,11.54524145,2068.3,2066.3,1.20985627]
[1770466752902,0.1024,2068.4,2066.4,1.20983352]
[1770466753102,0.05438813,2068.0,2066.4,1.20983352]
[1770466753304,2.77263548,2068.9,2066.4,1.20983352]
[1770466753305,0.00835965,2069.0,2067.0,1.42130654]
[1770466753613,0.00835965,2069.0,2067.6,1.20913136]
[1770466753814,0.00835965,2069.0,2067.6,2.6304379]
[1770466754423,1.2166802,2069.0,2067.5,1.20918128]
[1770466754607,0.00835965,2069.0,2067.6,0.05438813]
[1770466754809,0.00835965,2069.0,2067.6,1.90668768]
[1770466754986,0.00835965,2069.0,2067.5,2.63048782]
[1770466755422,0.05438813,2068.6,2066.9,11.54524145]
[1770466755625,0.05438813,2068.1,2066.8,2.6308712]
[1770466755834,0.05438813,2068.3,2066.8,1.20958833]
[1770466756316,0.05438813,2068.6,2066.8,1.20958833]
[1770466756624,0.05438813,2068.3,2066.8,1.20958833]
[1770466756833,0.05438813,2068.3,2066.8,1.20956695]
[1770466757124,0.60966389,2068.6,2066.8,12.7548084]
[1770466757423,1.20840446,2068.9,2066.9,12.96654799]
[1770466757594,1.26279259,2068.9,2066.9,12.96654799]
[1770466757799,0.05438813,2068.6,2067.0,1.20948234]
[1770466758012,1.26279259,2068.9,2067.0,1.20948234]
[1770466758387,0.05438813,2067.6,2066.3,1.20984642]
[1770466758612,0.05438813,2067.6,2066.2,1.20992331]
[1770466758818,0.05438813,2067.2,2065.8,1.21015618]
[1770466758993,0.05438813,2067.2,2065.8,0.74725273]
[1770466759193,0.05438813,2067.6,2066.0,1.21003348]
[1770466759385,0.05438813,2067.3,2065.6,1.42130654]
[1770466759619,0.05438813,2067.3,2066.0,1.21003264]
[1770466759805,1.26346101,2067.7,2065.7,1.2102435]
[1770466760005,1.20880602,2068.2,2066.0,1.42130654]
[1770466760203,0.05438813,2068.0,2066.1,1.30209361]
[1770466760407,0.05438813,2067.7,2066.1,1.30209361]
[1770466760597,0.05438813,2067.6,2065.7,1.2102435]
[1770466760800,1.20880602,2068.2,2066.0,0.05438813]
[1770466760997,0.05438813,2068.0,2065.8,1.42130654]
[1770466761207,1.26314458,2068.3,2066.0,13.02093612]
[1770466761413,0.00835965,2069.0,2066.8,11.54524145]
[1770466761703,0.05438813,2068.7,2067.0,1.20948234]
[1770466761898,1.27107271,2069.0,2067.0,1.20948234]
[1770466762300,0.05438813,2068.7,2067.0,1.20948234]
[1770466762509,0.05438813,2067.8,2065.9,17.80694617]
[1770466762702,0.05438813,2067.8,2064.3,1.69193484]
[1770466762703,0.05438813,2066.9,2065.3,1.42130654]
[1770466763026,0.05438813,2066.5,2065.1,1.21058784]
[1770466763326,0.05438813,2065.6,2064.0,1.42130654]
[1770466763529,0.05438813,2065.6,2063.3,1.42130654]
[1770466763530,0.05438813,2065.3,2063.3,1.42130654]
[1770466763733,0.05438813,2065.5,2063.8,4.84529062]
[1770466763900,11.54524145,2066.7,2064.2,12.96654799]
[1770466764230,4.83819382,2066.9,2064.6,13.02093612]
[1770466764431,0.33160441,2067.5,2065.1,11.54524145]
[1770466764599,0.05438813,2067.3,2065.5,11.54524145]
[1770466764799,4.89112933,2067.6,2065.3,0.05438813]
[1770466764800,0.05438813,2067.6,2065.3,0.05438813]
[1770466765041,1.26316871,2068.3,2065.8,11.54524145]
[1770466765332,0.05438813,2068.3,2066.2,11.54524145]
[1770466765504,0.05438813,2068.2,2066.0,1.42130654]
[1770466765709,12.75372409,2068.8,2066.5,11.54524145]
[1770466765909,12.75372409,2068.8,2066.6,0.05438813]
[1770466766230,1.21669418,2069.0,2066.9,11.59962958]
[1770466766439,1.2167046,2069.0,2067.0,1.15996296]
[1770466766600,0.00835965,2069.0,2067.1,1.42130654]
[1770466766960,0.00835965,2069.0,2067.8,11.54524145]
[1770466767114,1.43692475,2070.8,2068.6,13.02093612]
[1770466767351,0.05438813,2070.7,2068.7,1.30209361]
[1770466767521,0.05438813,2070.7,2068.7,11.54524145]
[1770466767826,1.26174675,2070.7,2068.8,1.20843]
[1770466768128,0.05438813,2070.3,2068.8,1.20843]
[1770466768337,0.22962585,2070.8,2068.8,0.05438813]
[1770466768541,0.22962585,2070.8,2069.3,1.42130654]
[1770466768903,0.05438813,2070.7,2068.7,12.75372671]
[1770466769135,0.05438813,2070.6,2068.7,1.20845494]
[1770466769301,1.43690185,2070.8,2068.8,0.05438813]
[1770466769506,0.22962585,2070.8,2069.0,0.05438813]
[1770466769720,1.43688984,2070.8,2069.1,1.20825479]
[1770466769932,0.05438813,2070.6,2068.5,1.42130654]
[1770466770134,0.05438813,2069.5,2067.8,1.20898137]
[1770466770340,11.54524145,2069.7,2067.1,1.42130654]
[1770466770523,1.51625202,2070.0,2068.4,1.20862115]
[1770466770722,0.05438813,2069.6,2067.6,11.54524145]
[1770466770935,0.05438813,2069.4,2068.1,1.20881699]
[1770466771105,0.05438813,2068.8,2066.4,1.42130654]
[1770466771306,0.05438813,2068.8,2066.2,4.89415076]
[1770466771307,0.05438813,2068.5,2066.2,4.83971055]
[1770466771504,0.05438813,2068.7,2067.1,1.20938839]
[1770466771740,1.20843,2068.8,2066.8,4.83827389]
[1770466771908,1.20811097,2069.4,2067.6,0.05438813]
[1770466772234,11.54524145,2069.0,2066.9,0.60479318]
[1770466772421,0.05438813,2068.8,2066.6,4.83863163]
[1770466772623,0.05438813,2069.3,2067.1,0.05438813]
[1770466772839,11.59962958,2069.8,2067.4,0.05438813]
[1770466773009,1.20790452,2069.7,2067.7,0.05438813]
[1770466773209,0.05438813,2070.1,2068.1,11.59962958]
[1770466773409,0.05438813,2070.1,2068.2,1.15996296]
[1770466773646,1.43689957,2070.8,2068.9,11.54524145]
[1770466773809,0.22962585,2070.8,2069.4,0.05438813]
[1770466774010,0.22962585,2070.8,2069.5,11.54524145]
[1770466774209,0.25255544,2071.8,2071.0,0.05438813]
[1770466774410,1.44624643,2074.4,2071.0,0.05438813]
[1770466774411,11.54524145,2074.2,2071.7,11.54524145]
[1770466774627,0.05438813,2073.8,2071.4,12.96654799]
[1770466774953,0.05438813,2072.6,2070.6,1.42130654]
[1770466775110,1.34309751,2073.4,2071.3,0.05438813]
[1770466775312,1.39748564,2073.4,2071.1,0.05438813]
[1770466775616,11.59962958,2072.8,2070.5,11.54524145]
[1770466775824,11.59962958,2072.8,2070.1,0.05438813]
[1770466775825,0.05438813,2072.2,2070.1,0.05438813]
[1770466776111,0.05438813,2072.2,2069.4,0.15678813]
[1770466776112,0.05438813,2071.6,2069.5,1.20798993]
[1770466776317,1.20633082,2072.4,2070.4,11.54524145]
[1770466776535,1.20633082,2072.4,2069.9,0.05438813]
[1770466776536,11.54524145,2072.2,2069.9,11.54524145]
[1770466776737,1.20603984,2072.9,2070.8,11.54524145]
[1770466776938,0.05438813,2074.1,2072.2,0.6036852]
[1770466777157,0.05438813,2074.1,2071.2,0.05438813]
[1770466777158,0.05438813,2073.8,2071.6,11.54524145]
[1770466777345,0.05438813,2073.8,2071.2,1.58656419]
[1770466777346,3.379,2073.8,2071.4,11.54524145]
[1770466777643,0.34333881,2073.7,2071.6,0.05438813]
[1770466777842,11.59962958,2074.1,2071.6,0.05438813]
[1770466778139,1.50093078,2074.4,2071.6,1.20678105]
[1770466778140,11.54524145,2073.3,2071.6,1.20678105]
[1770466778351,11.54524145,2073.7,2071.5,0.05438813]
[1770466778659,1.44654265,2074.0,2072.2,1.20641814]
[1770466778809,11.54524145,2074.1,2072.2,1.20641814]
[1770466779011,11.54524145,2074.1,2071.8,0.05438813]
[1770466779238,0.05438813,2074.5,2072.2,1.2608304]
[1770466779443,0.05438813,2074.5,2072.0,1.2065342]
[1770466779444,0.05438813,2073.9,2072.0,1.2065342]
[1770466779650,0.05438813,2073.6,2072.1,1.20647009]
[1770466779866,1.20551644,2073.8,2071.8,1.20668018]
[1770466780036,0.15678813,2074.2,2071.8,1.20668018]
[1770466780037,0.60275822,2073.7,2072.4,0.05438813]
[1770466780219,1.20542208,2074.0,2072.1,0.05438813]
[1770466780757,5.15003938,2074.9,2073.0,0.05438813]
[1770466780918,0.3303468,2074.9,2073.1,0.05438813]
[1770466781123,0.3303468,2074.9,2073.8,0.05438813]
[1770466781464,4.81775568,2075.7,2073.6,11.54524145]
[1770466781617,0.22644812,2075.9,2074.5,0.05438813]
[1770466781819,0.22644812,2075.9,2075.2,1.20470316]
[1770466782036,1e-08,2075.9,2075.2,0.05438813]
[1770466782220,0.1373485,2077.5,2075.8,0.05438813]
[1770466782445,1.34072883,2077.5,2075.2,0.05438813]
[1770466782651,11.54524145,2076.8,2075.2,0.63303498]
[1770466782861,11.54524145,2076.0,2075.1,0.00976723]
[1770466783172,3.604334,2075.8,2073.7,1.15996296]
[1770466783320,0.05438813,2076.0,2073.2,0.05438813]
[1770466783521,1.44654265,2077.3,2074.9,0.05438813]
[1770466783720,1.34072883,2077.5,2074.9,0.05438813]
[1770466783721,0.1373485,2077.5,2076.4,1.20400693]
[1770466783962,0.1373485,2077.5,2076.8,0.05438813]
[1770466784161,1.44654265,2077.2,2075.2,0.05438813]
[1770466784359,1.44654265,2076.9,2074.3,11.54524145]
[1770466784520,1.34072189,2077.5,2075.6,0.05438813]
[1770466784521,0.1373485,2077.5,2075.6,0.05438813]
[1770466784821,2.377384,2078.8,2076.3,1.2584484]
[1770466785014,0.05438813,2078.6,2076.5,0.05438813]
[1770466785258,4.81046757,2078.9,2076.3,12.74930172]
[1770466785425,11.54524145,2078.4,2075.9,13.07741751]
[1770466785622,0.05438813,2077.7,2075.1,13.07741751]
[1770466785850,1.20371707,2076.9,2074.8,0.05438813]
[1770466786018,0.60185854,2076.8,2075.1,0.05438813]
[1770466786225,0.60185854,2076.8,2076.0,0.05438813]
[1770466786427,1.20349632,2077.3,2074.8,11.54524145]
[1770466786626,1.20349632,2077.3,2074.4,11.54524145]
[1770466786627,11.59962958,2076.9,2074.4,11.54524145]
[1770466786937,0.1024,2076.6,2074.5,0.05438813]
[1770466787258,0.2335703,2077.2,2075.3,0.05438813]
[1770466787455,0.2335703,2077.2,2074.5,0.05438813]
[1770466787456,0.05438813,2076.6,2074.5,0.05438813]
[1770466787661,1.20349632,2077.3,2075.1,0.05438813]
[1770466787857,1.50093078,2077.6,2075.4,1.20455654]
[1770466787858,4.8683293,2077.5,2075.4,1.20455654]
[1770466788058,4.81394117,2077.5,2075.9,0.05438813]
[1770466788379,4.81394117,2077.5,2075.2,11.54524145]
[1770466788380,1.50093078,2077.2,2074.9,0.05438813]
[1770466788525,0.1024,2077.0,2074.6,0.05438813]
[1770466788864,0.2335703,2075.7,2073.4,1.20569906]
[1770466789027,0.05438813,2075.8,2074.0,1.20535809]
[1770466789225,1.44654265,2075.9,2073.9,1.20541727]
[1770466789459,0.15678813,2075.8,2073.7,1.20555336]
[1770466789630,0.15678813,2075.8,2073.7,2.48576092]
[1770466789825,1.30687099,2075.6,2073.4,4.82295623]
[1770466790053,1.20447099,2075.6,2073.6,0.05438813]
[1770466790255,1.20447099,2075.6,2073.4,4.82295623]
[1770466790256,1.20447099,2075.6,2073.3,1.20577603]
[1770466790455,1.20447099,2075.6,2072.9,11.54524145]
[1770466790456,4.51379,2075.4,2072.9,11.54524145]
[1770466790658,2.52227413,2075.4,2072.9,11.54524145]
[1770466790861,0.3359703,2075.0,2072.4,11.59962958]
[1770466791159,11.59962958,2075.1,2072.4,11.59962958]
[1770466791160,0.1024,2074.6,2072.4,11.54524145]
[1770466791367,0.1024,2074.6,2072.5,0.05438813]
[1770466791531,0.28795843,2074.5,2072.4,1.20631936]
[1770466791730,4.81950937,2075.0,2072.8,0.05438813]
[1770466791966,0.1024,2074.8,2072.9,0.05438813]
[1770466792251,5.16,2074.9,2072.7,1.20612811]
[1770466792463,12.9917841,2074.0,2071.3,11.54524145]
[1770466792633,0.1024,2073.9,2071.8,1.26101147]
[1770466792836,0.2335703,2073.8,2071.4,0.05438813]
[1770466793027,0.05438813,2073.6,2071.6,1.20675322]
[1770466793229,0.05438813,2072.9,2070.9,0.001]
[1770466793569,0.05438813,2073.5,2071.0,12.80677588]
[1770466793752,0.05438813,2073.5,2071.3,0.05438813]
[1770466794066,0.05438813,2073.0,2071.0,0.05438813]
[1770466794233,0.05438813,2073.0,2070.9,1.20815739]
[1770466794436,0.05438813,2073.0,2071.3,1.2069521]
[1770466794738,0.05438813,2073.0,2071.3,1.20697078]
[1770466794933,0.05438813,2072.7,2071.1,11.54524145]
[1770466795265,0.15678813,2073.3,2071.4,11.54524145]
[1770466795428,1.20574901,2073.4,2071.8,11.54524145]
[1770466795632,0.6028745,2073.3,2071.9,1.15452415]
[1770466795835,1.20586532,2073.2,2071.5,1.20685493]
[1770466796054,1.80871596,2073.3,2071.5,1.26124306]
[1770466796260,1.80871596,2073.3,2071.5,1.20685493]
[1770466796456,1.80871596,2073.3,2071.3,1.20694231]
[1770466796763,11.54524145,2072.8,2071.0,1.20709967]
[1770466796942,0.54480817,2073.2,2071.4,1.20689339]
[1770466797142,0.54480817,2073.2,2071.4,1.26128152]
[1770466797466,0.54480817,2073.2,2071.4,1.20689339]
[1770466797653,0.54480817,2073.2,2071.6,11.59962958]
[1770466797854,1.20540019,2074.0,2072.3,1.20638903]
[1770466798175,1.20540019,2074.0,2072.1,0.05438813]
[1770466798491,1.20540019,2074.0,2072.2,1.20641174]
[1770466799062,1.20435494,2075.8,2073.1,0.05438813]
[1770466799265,0.26508976,2075.7,2073.8,0.05438813]
[1770466799453,0.5169925,2075.7,2074.2,11.47262149]
[1770466799770,0.26508976,2075.7,2074.3,11.41823336]
[1770466799948,2.72497441,2076.5,2074.9,1.20487734]
[1770466800151,2.72497441,2076.5,2074.3,11.41823336]
[1770466800152,2.77936254,2076.5,2074.3,11.41823336]
[1770466800335,11.47262149,2076.3,2073.6,11.41823336]
[1770466800531,0.05438813,2076.2,2074.0,0.05438813]
[1770466800763,0.05438813,2075.9,2073.7,4.87655685]
[1770466801066,0.05438813,2075.9,2074.1,1.20530186]
[1770466801287,0.05438813,2075.9,2073.8,1.62947902]
[1770466801288,11.41823336,2076.3,2073.8,13.04771238]
[1770466801590,11.41823336,2075.4,2073.1,4.8235969]
[1770466801892,0.05438813,2075.3,2073.3,1.20580716]
[1770466802088,0.05438813,2075.1,2073.3,1.20580716]
[1770466802583,0.05438813,2074.5,2072.1,12.95040942]
[1770466802772,0.05438813,2074.3,2072.2,1.29504094]
[1770466802972,0.1024,2074.9,2073.2,1.2058415]
[1770466802973,0.05438813,2074.9,2073.2,1.2058415]
[1770466803178,11.41823336,2075.3,2073.2,1.2058415]
[1770466803492,0.05438813,2075.1,2073.2,1.2058415]
[1770466803662,4.81834827,2075.6,2073.2,1.2058415]
[1770466803992,4.81834827,2075.6,2072.7,12.95040942]
[1770466803993,0.05438813,2074.8,2072.7,12.95040942]
[1770466804155,0.1024,2075.3,2073.4,1.20573779]
[1770466804494,0.1024,2075.3,2072.9,0.05438813]
[1770466804796,0.1024,2075.3,2072.4,0.05438813]
[1770466804797,0.05438813,2074.5,2072.4,1.20629453]
[1770466805085,0.05438813,2074.2,2071.8,0.05538813]
[1770466805287,11.47262149,2073.9,2071.9,1.20659455]
[1770466805488,0.28795843,2073.6,2071.8,0.001]
[1770466805688,0.05438813,2073.3,2071.8,0.001]
[1770466805864,1.20592349,2073.1,2071.8,0.001]
[1770466806065,0.2335703,2072.6,2070.9,0.001]
[1770466806267,0.15678813,2073.0,2070.9,0.001]
[1770466806507,0.61864056,2073.0,2071.1,0.05438813]
[1770466806790,0.05438813,2072.7,2070.9,0.001]
[1770466806973,0.05438813,2072.4,2070.9,0.001]
[1770466807186,0.28795843,2072.4,2070.9,0.001]
[1770466807410,0.2335703,2072.0,2070.9,0.001]
[1770466807563,0.2335703,2072.0,2069.8,0.05438813]
[1770466807758,1.20679667,2071.6,2069.6,12.62613788]
[1770466807958,0.2335703,2071.4,2069.7,1.26261379]
[1770466808180,0.58343024,2071.5,2069.6,1.20795671]
[1770466808801,0.05438813,2071.2,2069.6,1.20794846]
[1770466808998,0.05438813,2070.9,2068.3,1.48254265]
[1770466809191,0.05438813,2070.8,2068.7,0.05438813]
[1770466809390,0.05438813,2070.8,2069.1,1.2082145]
[1770466809592,0.05438813,2070.8,2068.9,1.20832181]
[1770466809808,0.05438813,2070.5,2068.7,4.83393787]
[1770466810008,1.20749613,2070.4,2068.7,1.62521712]
[1770466810298,1.20749613,2070.4,2068.9,11.41823336]
[1770466810500,1.20749613,2070.4,2068.7,1.62521712]
[1770466810799,1.20749613,2070.4,2068.7,1.67960525]
[1770466810995,1.20720459,2070.9,2068.7,1.67960525]
[1770466811198,0.61864056,2070.8,2068.8,0.28881521]
[1770466811606,0.05438813,2070.6,2068.7,1.62521712]
[1770466811779,0.05438813,2070.3,2068.3,4.83475712]
[1770466811987,0.05438813,2070.0,2068.1,1.20883903]
[1770466812324,0.05438813,2070.0,2068.1,1.26322716]
[1770466812325,0.15678813,2070.0,2068.1,1.26322716]
[1770466812601,0.15678813,2070.0,2068.1,1.20883903]
[1770466812814,11.41823336,2069.7,2067.8,1.20897713]
[1770466813002,0.52904211,2069.6,2067.8,1.20897431]
[1770466813198,0.52904211,2069.6,2068.0,1.20888825]
[1770466813378,0.39035843,2070.0,2068.0,1.20889703]
[1770466813574,0.15678813,2070.0,2068.1,0.05438813]
[1770466813775,0.15678813,2070.0,2068.0,1.26328516]
[1770466813978,1.20778781,2069.9,2068.0,1.26328516]
[1770466814205,0.1024,2069.8,2068.1,0.05438813]
[1770466814381,11.41823336,2069.5,2067.4,0.03353148]
[1770466814584,0.05438813,2069.1,2067.4,1.24273089]
[1770466814900,0.15678813,2069.4,2068.3,0.001]
[1770466815101,0.2335703,2069.0,2067.4,0.03353148]
[1770466815302,11.41823336,2068.4,2067.4,0.02308375]
[1770466815517,0.52810995,2068.3,2067.4,0.02308375]
[1770466815876,1.20878058,2068.2,2067.3,0.10043225]
[1770466816074,11.47262149,2067.9,2066.3,1.20986241]
[1770466816300,11.47262149,2067.9,2066.1,4.83998051]
[1770466816301,11.41823336,2067.9,2066.1,4.83998051]
[1770466816487,11.41823336,2067.9,2066.5,1.20976353]
[1770466816688,11.41823336,2067.9,2066.4,1.20983315]
[1770466816890,1.26316871,2068.2,2066.4,1.20983315]
[1770466816891,1.20878058,2068.2,2066.4,4.83920915]
[1770466817090,1.20874238,2068.3,2066.6,0.05438813]
[1770466817308,12.68136387,2068.3,2066.8,4.83839551]
[1770466817509,12.68136387,2068.3,2066.8,1.20959735]
[1770466817708,12.62697574,2068.3,2066.8,4.83839515]
[1770466817909,11.41823336,2068.7,2066.9,5.32197394]
[1770466818112,4.8346548,2068.6,2066.9,1.69334631]
[1770466818309,11.41823336,2068.3,2066.7,1.20964342]
[1770466818611,11.41823336,2067.9,2065.9,0.001]
[1770466818910,0.28795843,2067.8,2065.9,0.001]
[1770466819110,0.28795843,2067.8,2065.9,1.21108356]
[1770466819111,0.05438813,2067.3,2065.9,1.21108356]
[1770466819308,0.05438813,2067.3,2065.9,1.21108615]
[1770466819516,11.47262149,2067.8,2065.9,4.84142929]
[1770466819723,0.2335703,2068.0,2066.5,1.20974612]
[1770466819881,0.2335703,2068.0,2066.0,0.48414293]
[1770466820087,0.05438813,2067.8,2066.1,1.21000919]
[1770466820286,11.41823336,2067.5,2065.9,0.001]
[1770466820518,11.47262149,2067.8,2066.0,1.21006706]
[1770466820827,1.20895594,2067.9,2066.0,1.26445519]
[1770466821033,1.20895594,2067.9,2066.0,1.21006706]
[1770466821312,4.8888522,2068.5,2066.4,0.05438813]
[1770466821521,0.05438813,2067.9,2066.1,0.60513381]
[1770466821885,0.2335703,2068.1,2066.1,0.60513381]
[1770466822225,1.20889748,2068.0,2066.2,1.20995063]
[1770466823085,0.05438813,2067.9,2066.2,1.20995063]
[1770466823597,0.60988756,2067.9,2066.3,0.6654887]
[1770466823796,0.05438813,2067.9,2066.3,0.6654887]
[1770466824114,1.20901441,2067.8,2066.3,1.87536543]
[1770466824410,1.20901441,2067.8,2066.3,1.20988326]
[1770466824608,0.05438813,2067.6,2065.9,0.001]
[1770466824834,11.41823336,2066.9,2065.8,1.21014736]
[1770466824984,1.63515051,2067.7,2066.1,4.83997373]
[1770466825185,0.05438813,2067.4,2066.3,1.20986812]
[1770466825387,0.05438813,2067.5,2066.3,1.20986812]
[1770466825818,0.05438813,2067.2,2066.1,0.48399737]
[1770466826006,1.20942383,2067.1,2065.5,4.84131211]
[1770466826316,0.05438813,2066.9,2065.4,1.21039207]
[1770466826898,1.20942383,2067.1,2065.4,1.21039207]
[1770466827698,1.20918984,2067.5,2065.5,0.05438813]
[1770466828100,1.20918984,2067.5,2065.6,1.21030209]
[1770466828301,0.63358045,2067.4,2065.7,0.61058986]
[1770466828633,0.002,2067.7,2065.8,11.47262149]
[1770466828923,1.21109024,2067.7,2066.0,1.62956702]
[1770466829223,0.002,2067.7,2066.2,13.04780038]
[1770466829398,0.05438813,2067.6,2065.7,0.61058986]
[1770466829598,0.66456566,2067.6,2065.8,1.98495292]
[1770466830199,1.20918984,2067.5,2065.9,1.21012633]
[1770466830512,1.87371458,2067.6,2065.9,1.21012633]
[1770466831710,0.05438813,2067.3,2065.9,1.21012633]
[1770466831910,1.81931966,2067.6,2065.9,1.21012633]
[1770466832231,0.002,2067.7,2066.1,12.62824255]
[1770466832463,0.002,2067.7,2066.1,1.21000919]
[1770466833595,0.05438813,2067.6,2066.1,1.21000919]
[1770466833994,0.05438813,2067.5,2066.1,1.21000919]
[1770466834215,0.002,2067.7,2066.1,1.21000919]
[1770466834528,0.05438813,2067.6,2066.2,0.66906477]
[1770466834832,0.05438813,2067.5,2066.1,1.21000919]
[1770466835432,0.05438813,2067.2,2066.1,1.21000919]
[1770466835796,0.05438813,2066.9,2066.1,1.21000919]
[1770466835997,0.05438813,2066.6,2065.8,1.21014987]
[1770466836219,0.05438813,2067.2,2065.9,1.21011674]
[1770466836402,1.20942383,2067.1,2065.6,0.001]
[1770466836602,0.05438813,2066.9,2065.6,0.001]
[1770466837002,0.61015073,2067.0,2065.6,0.001]
[1770466837203,0.05438813,2066.9,2065.6,0.001]
[1770466837602,0.05438813,2066.6,2065.6,0.001]
[1770466838053,0.05438813,2066.9,2065.6,0.001]
[1770466838403,4.83730815,2067.3,2065.6,0.001]
[1770466838615,1.20913136,2067.6,2065.6,1.34938195]
[1770466839231,1.20913136,2067.6,2065.9,11.41823336]
[1770466840254,1.26351949,2067.6,2065.8,1.5197048]
[1770466840423,1.26351949,2067.6,2065.7,1.2102435]
[1770466840818,1.20913136,2067.6,2065.7,1.2102435]
[1770466841041,0.60476568,2067.5,2065.8,2.25432593]
[1770466841243,0.05438813,2067.3,2065.7,1.2102435]
[1770466841753,0.05438813,2067.3,2065.8,0.001]
[1770466841932,0.05438813,2067.0,2065.8,0.001]
[1770466842133,0.002,2067.4,2065.8,0.001]
[1770466842361,0.002,2067.4,2065.9,11.47262149]
[1770466842655,0.002,2067.4,2066.0,2.35742991]
[1770466844136,0.05438813,2067.3,2065.9,1.21008444]
[1770466844322,0.002,2067.4,2065.9,1.21008444]
[1770466844527,0.002,2067.4,2065.8,0.001]
[1770466844744,0.05438813,2067.2,2065.8,0.001]
[1770466845051,0.05438813,2067.1,2065.8,0.001]
[1770466845429,0.05438813,2066.8,2065.8,0.001]
[1770466845626,0.05438813,2066.7,2065.8,0.001]
[1770466846231,6.68432137,2067.0,2065.8,0.001]
[1770466846558,1.2096579,2066.7,2065.8,0.001]
[1770466847055,0.05438813,2066.5,2065.8,0.001]
[1770466847254,0.05438813,2066.2,2065.6,0.001]
[1770466847471,0.05438813,2066.2,2065.4,0.001]
[1770466848155,0.05438813,2065.6,2064.8,1.21072767]
[1770466848332,0.05438813,2066.2,2064.8,1.21072767]
[1770466848534,1.2102435,2065.7,2064.2,4.84446576]
[1770466848729,4.89381493,2066.4,2064.5,11.41823336]
[1770466849027,4.83980253,2066.3,2064.5,11.41823336]
[1770466849228,4.83980253,2066.3,2063.2,0.1373485]
[1770466849229,0.2335703,2065.5,2063.2,0.1373485]
[1770466849461,0.05438813,2065.0,2063.2,0.1373485]
[1770466849628,6.4201239,2066.3,2064.5,0.05438813]
[1770466849833,6.4201239,2066.3,2064.1,1.21117664]
[1770466850025,0.28795843,2066.0,2064.1,1.21117664]
[1770466850245,1.58032137,2066.0,2064.3,0.05438813]
[1770466850432,1.58032137,2066.0,2064.4,0.05438813]
[1770466850646,1.21012633,2065.9,2064.1,1.21117664]
[1770466850841,1.20995063,2066.2,2064.6,0.05438813]
[1770466851028,1.20995063,2066.2,2064.2,0.61102913]
[1770466851029,1.26433876,2066.2,2064.2,0.61102913]
[1770466851658,0.05438813,2065.9,2064.2,0.61102913]
[1770466851861,0.05438813,2065.6,2064.1,1.21118162]
[1770466852169,0.05438813,2065.3,2064.1,1.21118162]
[1770466852634,1.2105365,2065.2,2063.4,4.84633878]
[1770466853049,0.05438813,2065.0,2063.3,1.21165123]
[1770466853459,0.05438813,2064.7,2063.3,1.21165123]
[1770466853659,1.2105365,2065.2,2063.6,11.41823336]
[1770466853875,0.05438813,2065.1,2063.4,0.61956047]
[1770466854177,0.05438813,2065.1,2063.2,6.50365825]
[1770466854178,0.05438813,2064.8,2063.2,1.34904358]
[1770466854355,0.05438813,2064.5,2063.2,1.34904358]
[1770466854667,1.21082966,2064.7,2063.2,1.34904358]
[1770466854887,0.05438813,2064.5,2063.2,1.34904791]
[1770466855567,1.2108158,2064.8,2063.2,1.34904791]
[1770466855776,0.65977222,2064.7,2063.6,0.001]
[1770466856492,0.60538409,2064.7,2063.6,0.001]
[1770466856642,1.2108883,2064.6,2063.6,0.001]
[1770466857159,0.60538409,2064.7,2063.6,0.001]
[1770466857359,1.21047789,2065.3,2063.6,0.001]
[1770466857679,0.6430293,2065.2,2063.6,0.001]
[1770466858173,0.32351537,2065.4,2063.7,1.5197048]
[1770466858350,0.05438813,2065.2,2063.7,1.5197048]
[1770466858750,0.05438813,2064.9,2063.8,1.21135768]
[1770466858977,0.05438813,2064.6,2063.7,1.21138008]
[1770466859145,0.05438813,2064.8,2063.7,1.21141091]
[1770466859346,0.05438813,2065.1,2063.7,1.21141091]
[1770466859541,0.66509958,2065.1,2063.7,1.21141091]
[1770466859978,0.05438813,2064.8,2063.7,1.21141091]
[1770466860354,0.61071145,2065.1,2063.7,2.73111571]
[1770466860671,0.32351537,2065.4,2063.8,1.5197048]
[1770466860882,0.05438813,2065.2,2063.8,1.5197048]
[1770466861077,0.05438813,2064.9,2063.7,1.21141091]
[1770466861595,1.58833,2065.4,2063.7,1.21141091]
[1770466861768,0.64300072,2065.3,2063.7,2.30178511]
[1770466861970,0.32351537,2065.4,2064.2,1.5197048]
[1770466862178,1.53394287,2065.4,2063.8,1.5197048]
[1770466862400,1.588331,2065.4,2063.8,1.5197048]
[1770466862767,0.05438813,2065.1,2063.8,1.21134563]
[1770466862986,0.05438813,2065.0,2063.8,1.21134563]
[1770466863172,1.588331,2065.4,2063.8,1.92620026]
[1770466863379,1.588331,2065.4,2063.8,1.21134563]
[1770466863567,0.05438813,2065.1,2063.8,1.21134563]
[1770466863891,1.588331,2065.4,2063.8,1.21134563]
[1770466864390,1.53394287,2065.4,2063.8,2.73105043]
[1770466864690,1.588331,2065.4,2063.8,2.73105043]
[1770466864901,0.05438813,2065.1,2063.8,2.73105043]
[1770466865061,0.64298185,2065.3,2063.8,1.21134563]
[1770466866412,0.64298185,2065.3,2063.9,1.62927342]
[1770466866569,0.32351537,2065.4,2063.9,1.62927342]
[1770466866891,0.05438813,2065.3,2064.0,1.21124031]
[1770466867490,0.32351537,2065.4,2064.1,1.62927342]
[1770466867671,1.53395946,2065.4,2064.1,1.62927342]
[1770466867871,1.53395946,2065.4,2064.0,1.21124031]
[1770466868064,0.69194998,2065.3,2064.0,1.21124031]
[1770466868261,0.63756185,2065.3,2064.0,1.21124031]
[1770466868887,1.84807335,2065.3,2063.8,4.84496124]
[1770466869188,1.84807335,2065.3,2063.8,6.47423466]
[1770466869383,1.90246148,2065.3,2063.7,4.84496124]
[1770466869581,0.51012082,2065.2,2063.7,6.47423466]
[1770466869898,0.51012082,2065.2,2064.0,0.001]
[1770466870094,0.05438813,2065.0,2064.0,0.001]
[1770466870414,0.05438813,2064.7,2064.0,0.001]
[1770466870988,1.2108883,2064.6,2064.0,0.001]
[1770466871306,0.05438813,2064.4,2064.0,0.001]
[1770466871471,0.05438813,2064.4,2063.8,0.001]
[1770466871672,0.61087969,2064.5,2063.8,0.001]